[Event "13 Open de Quenza"]
[Site "Quenza, France"]
[Date "2024.07.07"]
[Round "5.4"]
[White "Travadon, Loic"]
[Black "Lagarde, Maxime"]
[Result "0-1"]
[TimeControl "5min+3s/move"]
[WhiteElo "2458"]
[BlackElo "2608"]

1. e4 {[%clk 00:05:03]} {[%emt 00:00:02]} e6 {[%clk 00:05:03]} {[%emt
00:00:01]} 2. d4 {[%clk 00:04:57]} {[%emt 00:00:10]} d5 {[%clk 00:05:03]}
{[%emt 00:00:01]} 3. exd5 {[%clk 00:04:57]} {[%emt 00:00:02]} exd5 {[%clk
00:05:03]} {[%emt 00:00:01]} 4. Nf3 {[%clk 00:04:57]} {[%emt 00:00:01]} Nc6
{[%clk 00:05:03]} {[%emt 00:00:01]} 5. Bb5 {[%clk 00:04:57]} {[%emt 00:00:01]}
Bd6 {[%clk 00:05:03]} {[%emt 00:00:02]} 6. h3 {[%clk 00:04:53]} {[%emt
00:00:06]} Nge7 {[%clk 00:05:03]} {[%emt 00:00:03]} 7. O-O {[%clk 00:04:52]}
{[%emt 00:00:05]} a6 {[%clk 00:04:46]} {[%emt 00:00:21]} 8. Bd3 {[%clk
00:04:52]} {[%emt 00:00:01]} Nb4 {[%clk 00:04:46]} {[%emt 00:00:02]} 9. Be2
{[%clk 00:04:52]} {[%emt 00:00:01]} Bf5 {[%clk 00:04:46]} {[%emt 00:00:02]} 10.
Na3 {[%clk 00:04:52]} {[%emt 00:00:02]} O-O {[%clk 00:04:29]} {[%emt 00:00:20]}
11. Re1 {[%clk 00:04:43]} {[%emt 00:00:11]} h6 {[%clk 00:04:29]} {[%emt
00:00:04]} 12. c3 {[%clk 00:04:43]} {[%emt 00:00:01]} Nbc6 {[%clk 00:04:29]} 13.
Nc2 {[%clk 00:04:43]} {[%emt 00:00:02]} Ng6 {[%clk 00:04:12]} {[%emt 00:00:20]}
14. Ne3 {[%clk 00:04:42]} {[%emt 00:00:04]} Be6 {[%clk 00:04:12]} {[%emt
00:00:03]} 15. Bd3 {[%clk 00:04:37]} {[%emt 00:00:08]} Nf4 {[%clk 00:04:12]}
{[%emt 00:00:02]} 16. Bc2 {[%clk 00:04:35]} {[%emt 00:00:06]} Qd7 {[%clk
00:04:07]} {[%emt 00:00:09]} 17. h4 {[%clk 00:04:23]} {[%emt 00:00:15]} Rae8
{[%clk 00:04:05]} {[%emt 00:00:04]} 18. g3 {[%clk 00:04:20]} {[%emt 00:00:06]}
Ng6 {[%clk 00:04:02]} {[%emt 00:00:06]} 19. h5 {[%clk 00:04:03]} {[%emt
00:00:19]} Nge7 {[%clk 00:03:53]} {[%emt 00:00:12]} 20. Qd3 {[%clk 00:04:03]}
f5 {[%clk 00:03:53]} {[%emt 00:00:02]} 21. Ng2 {[%clk 00:04:03]} {[%emt
00:00:02]} Bf7 {[%clk 00:03:49]} {[%emt 00:00:07]} 22. Ne5 {[%clk 00:04:02]}
{[%emt 00:00:04]} Bxe5 {[%clk 00:03:42]} {[%emt 00:00:11]} 23. dxe5 {[%clk
00:04:02]} {[%emt 00:00:02]} Nd8 {[%clk 00:03:39]} {[%emt 00:00:06]} 24. g4
{[%clk 00:03:42]} {[%emt 00:00:23]} Be6 {[%clk 00:03:24]} {[%emt 00:00:19]} 25.
g5 {[%clk 00:03:30]} {[%emt 00:00:15]} Nf7 {[%clk 00:03:23]} {[%emt 00:00:03]}
26. g6 {[%clk 00:03:28]} {[%emt 00:00:04]} Nd8 {[%clk 00:03:20]} {[%emt
00:00:06]} 27. f4 {[%clk 00:03:01]} {[%emt 00:00:31]} c5 {[%clk 00:03:14]}
{[%emt 00:00:10]} 28. Be3 {[%clk 00:03:01]} {[%emt 00:00:02]} d4 {[%clk
00:03:08]} {[%emt 00:00:09]} 29. cxd4 {[%clk 00:03:01]} {[%emt 00:00:02]} c4
{[%clk 00:03:08]} {[%emt 00:00:01]} 30. Qd2 {[%clk 00:03:01]} {[%emt 00:00:03]}
Nd5 {[%clk 00:03:06]} {[%emt 00:00:05]} 31. Bf2 {[%clk 00:03:01]} {[%emt
00:00:03]} Nc6 {[%clk 00:03:06]} {[%emt 00:00:02]} 32. Bd1 {[%clk 00:02:50]}
{[%emt 00:00:13]} Rc8 {[%clk 00:03:04]} {[%emt 00:00:05]} 33. Bf3 {[%clk
00:02:50]} {[%emt 00:00:02]} Ncb4 {[%clk 00:03:04]} {[%emt 00:00:02]} 34. Red1
{[%clk 00:02:46]} {[%emt 00:00:07]} Nd3 {[%clk 00:02:58]} {[%emt 00:00:09]} 35.
b3 {[%clk 00:02:43]} {[%emt 00:00:07]} Nxf2 {[%clk 00:02:56]} {[%emt 00:00:06]}
36. Qxf2 {[%clk 00:02:43]} {[%emt 00:00:02]} cxb3 {[%clk 00:02:52]} {[%emt
00:00:07]} 37. axb3 {[%clk 00:02:43]} {[%emt 00:00:02]} Rc3 {[%clk 00:02:52]}
38. Rac1 {[%clk 00:02:39]} {[%emt 00:00:07]} Rfc8 {[%clk 00:02:52]} 39. Qf1
{[%clk 00:02:26]} {[%emt 00:00:16]} Qc7 {[%clk 00:02:31]} {[%emt 00:00:25]} 40.
Rxc3 {[%clk 00:02:18]} {[%emt 00:00:11]} Qxc3 {[%clk 00:02:31]} {[%emt
00:00:03]} 41. Qd3 {[%clk 00:02:17]} {[%emt 00:00:04]} Qb2 {[%clk 00:02:11]}
{[%emt 00:00:22]} 42. Rd2 {[%clk 00:02:14]} {[%emt 00:00:07]} Qc1+ {[%clk
00:02:00]} {[%emt 00:00:14]} 43. Rd1 {[%clk 00:02:06]} {[%emt 00:00:11]} Nxf4
{[%clk 00:01:43]} {[%emt 00:00:20]} 44. Nxf4 {[%clk 00:02:06]} {[%emt
00:00:03]} Qxf4 {[%clk 00:01:43]} {[%emt 00:00:02]} 45. d5 {[%clk 00:02:06]}
Bd7 {[%clk 00:01:37]} {[%emt 00:00:10]} 46. d6 {[%clk 00:01:58]} {[%emt
00:00:11]} Bb5 {[%clk 00:01:37]} {[%emt 00:00:03]} 47. Qd5+ {[%clk 00:01:58]}
{[%emt 00:00:04]} Kh8 {[%clk 00:01:37]} 48. d7 {[%clk 00:01:55]} {[%emt
00:00:06]} Rd8 {[%clk 00:01:37]} {[%emt 00:00:03]} 49. e6 {[%clk 00:01:46]}
{[%emt 00:00:12]} Bc6 {[%clk 00:01:37]} {[%emt 00:00:01]} 50. e7 {[%clk
00:01:11]} {[%emt 00:00:38]} Qe3+ {[%clk 00:01:36]} {[%emt 00:00:04]} 51. Kf1
{[%clk 00:01:02]} {[%emt 00:00:11]} Qxe7 {[%clk 00:01:35]} {[%emt 00:00:04]} 52.
Qxf5 {[%clk 00:01:02]} {[%emt 00:00:01]} Bxd7 {[%clk 00:01:25]} {[%emt
00:00:13]} 53. Qf4 {[%clk 00:00:56]} {[%emt 00:00:10]} Bb5+ {[%clk 00:01:14]}
{[%emt 00:00:13]} 54. Kf2 {[%clk 00:00:56]} {[%emt 00:00:02]} Rf8 {[%clk
00:01:14]} {[%emt 00:00:01]} 55. Qe3 {[%clk 00:00:48]} {[%emt 00:00:11]} Qf6
{[%clk 00:01:11]} {[%emt 00:00:07]} 56. Kg2 {[%clk 00:00:45]} {[%emt 00:00:05]}
Bc6 {[%clk 00:01:11]} {[%emt 00:00:03]} 57. Rf1 {[%clk 00:00:40]} {[%emt
00:00:08]} Bxf3+ {[%clk 00:00:58]} {[%emt 00:00:15]} 58. Rxf3 {[%clk 00:00:40]}
{[%emt 00:00:02]} Qxf3+ {[%clk 00:00:58]} {[%emt 00:00:01]} 59. Qxf3 {[%clk
00:00:40]} Rxf3 {[%clk 00:00:58]} {[%emt 00:00:01]} 60. Kxf3 {[%clk 00:00:40]}
{[%emt 00:00:01]} a5 {[%clk 00:00:58]} 61. Ke4 {[%clk 00:00:40]} {[%emt
00:00:04]} b5 {[%clk 00:00:58]} 62. Kd4 {[%clk 00:00:40]} {[%emt 00:00:01]} a4
{[%clk 00:00:58]} {[%emt 00:00:02]} 63. bxa4 {[%clk 00:00:40]} {[%emt
00:00:01]} bxa4 {[%clk 00:00:58]} {[%emt 00:00:01]} 64. Kc4 {[%clk 00:00:40]}
Kg8 {[%clk 00:00:58]} 65. Kb4 {[%clk 00:00:40]} Kf8 {[%clk 00:00:58]} {[%emt
00:00:01]} 66. Kxa4 {[%clk 00:00:40]} Ke7 {[%clk 00:00:58]} 67. Kb5 {[%clk
00:00:40]} {[%emt 00:00:02]} Kf6 {[%clk 00:00:58]} 68. Kc6 {[%clk 00:00:40]}
Kg5 {[%clk 00:00:58]} 69. Kd5 {[%clk 00:00:39]} {[%emt 00:00:04]} Kxh5 {[%clk
00:00:58]} {[%emt 00:00:01]} 70. Ke5 {[%clk 00:00:39]} Kxg6 {[%emt 00:00:03]}
71. Kd4 0-1

[Event "13 Open de Quenza"]
[Site "Quenza, France"]
[Date "2024.07.07"]
[Round "5.5"]
[White "Anwesh, Upadhyaya"]
[Black "Batsiashvili, Nino"]
[Result "1-0"]
[TimeControl "5min+3s/move"]
[WhiteElo "2363"]
[BlackElo "2451"]

1. d4 {[%clk 00:05:03]} {[%emt 00:00:01]} d5 {[%clk 00:05:03]} {[%emt
00:00:02]} 2. Nf3 {[%clk 00:05:03]} {[%emt 00:00:01]} Nf6 {[%clk 00:05:03]}
{[%emt 00:00:01]} 3. c4 {[%clk 00:05:03]} {[%emt 00:00:02]} e6 {[%clk
00:05:03]} {[%emt 00:00:01]} 4. Bg5 {[%clk 00:04:58]} {[%emt 00:00:09]} h6
{[%clk 00:04:49]} {[%emt 00:00:17]} 5. Bxf6 {[%clk 00:04:53]} {[%emt 00:00:08]}
Qxf6 {[%clk 00:04:49]} {[%emt 00:00:01]} 6. Nc3 {[%clk 00:04:53]} {[%emt
00:00:01]} Bb4 {[%clk 00:04:45]} {[%emt 00:00:08]} 7. e3 {[%clk 00:04:37]}
{[%emt 00:00:19]} O-O {[%clk 00:04:32]} {[%emt 00:00:16]} 8. Qc2 {[%clk
00:04:28]} {[%emt 00:00:12]} c6 {[%clk 00:04:08]} {[%emt 00:00:28]} 9. Bd3
{[%clk 00:04:08]} {[%emt 00:00:23]} Nd7 {[%clk 00:04:00]} {[%emt 00:00:11]} 10.
O-O {[%clk 00:04:06]} {[%emt 00:00:05]} dxc4 {[%clk 00:03:51]} {[%emt
00:00:13]} 11. Bxc4 {[%clk 00:04:06]} {[%emt 00:00:01]} e5 {[%clk 00:03:51]}
{[%emt 00:00:02]} 12. a3 {[%clk 00:03:51]} {[%emt 00:00:18]} Ba5 {[%clk
00:03:50]} {[%emt 00:00:03]} 13. b4 {[%clk 00:03:43]} {[%emt 00:00:11]} Bc7
{[%clk 00:03:36]} {[%emt 00:00:18]} 14. d5 {[%clk 00:03:36]} {[%emt 00:00:10]}
Nb6 {[%clk 00:03:36]} {[%emt 00:00:03]} 15. Bb3 {[%clk 00:03:36]} {[%emt
00:00:01]} Bg4 {[%clk 00:02:47]} {[%emt 00:00:51]} 16. Nd2 {[%clk 00:03:35]}
{[%emt 00:00:05]} Rad8 {[%clk 00:02:39]} {[%emt 00:00:11]} 17. Nde4 {[%clk
00:02:59]} {[%emt 00:00:39]} Qg6 {[%clk 00:02:33]} {[%emt 00:00:09]} 18. dxc6
{[%clk 00:02:55]} {[%emt 00:00:07]} bxc6 {[%clk 00:02:15]} {[%emt 00:00:21]} 19.
Nc5 {[%clk 00:02:48]} {[%emt 00:00:10]} Bf5 {[%clk 00:02:11]} {[%emt 00:00:07]}
20. e4 {[%clk 00:02:38]} {[%emt 00:00:13]} Bh3 {[%clk 00:02:08]} {[%emt
00:00:05]} 21. f3 {[%clk 00:02:35]} {[%emt 00:00:06]} Qg5 {[%clk 00:01:48]}
{[%emt 00:00:23]} 22. Rf2 {[%clk 00:02:35]} {[%emt 00:00:01]} Nd7 {[%clk
00:01:47]} {[%emt 00:00:05]} 23. N3a4 {[%clk 00:02:21]} {[%emt 00:00:17]} Nxc5
{[%clk 00:01:44]} {[%emt 00:00:06]} 24. Nxc5 {[%clk 00:02:21]} {[%emt
00:00:01]} Bb6 {[%clk 00:01:40]} {[%emt 00:00:07]} 25. Qc1 {[%clk 00:02:18]}
{[%emt 00:00:05]} Qg6 {[%clk 00:01:31]} {[%emt 00:00:13]} 26. Kh1 {[%clk
00:02:18]} {[%emt 00:00:02]} Bc8 {[%clk 00:01:31]} {[%emt 00:00:02]} 27. Rd2
{[%clk 00:01:55]} {[%emt 00:00:26]} Rxd2 {[%clk 00:01:25]} {[%emt 00:00:09]} 28.
Qxd2 {[%clk 00:01:55]} {[%emt 00:00:01]} Rd8 {[%clk 00:01:25]} 29. Qc3 {[%clk
00:01:51]} {[%emt 00:00:07]} Bxc5 {[%clk 00:00:58]} {[%emt 00:00:31]} 30. Qxc5
{[%clk 00:01:35]} {[%emt 00:00:19]} Rd2 {[%clk 00:00:33]} {[%emt 00:00:27]} 31.
Rg1 {[%clk 00:01:35]} {[%emt 00:00:01]} Ba6 {[%clk 00:00:18]} {[%emt 00:00:19]}
32. Qc3 {[%clk 00:01:07]} {[%emt 00:00:30]} Qd6 {[%clk 00:00:10]} {[%emt
00:00:10]} 33. Bc4 {[%clk 00:00:35]} {[%emt 00:00:36]} Bxc4 {[%clk 00:00:10]}
{[%emt 00:00:02]} 34. Qxc4 {[%clk 00:00:35]} Rd1 {[%clk 00:00:06]} {[%emt
00:00:07]} 35. h3 {[%clk 00:00:32]} {[%emt 00:00:06]} Rd4 {[%clk 00:00:06]}
{[%emt 00:00:02]} 36. Qa6 {[%clk 00:00:30]} {[%emt 00:00:05]} Qd7 {[%clk
00:00:06]} {[%emt 00:00:02]} 37. Rc1 {[%clk 00:00:30]} {[%emt 00:00:02]} Rd1+
38. Rxd1 {[%emt 00:00:01]} Qxd1+ {[%clk 00:00:06]} 39. Kh2 {[%clk 00:00:30]}
Qd7 {[%clk 00:00:06]} {[%emt 00:00:01]} 40. Qc4 {[%clk 00:00:26]} {[%emt
00:00:08]} h5 {[%clk 00:00:06]} {[%emt 00:00:02]} 41. Qc5 {[%clk 00:00:25]}
{[%emt 00:00:04]} Qc7 {[%clk 00:00:06]} {[%emt 00:00:02]} 42. b5 {[%clk
00:00:23]} {[%emt 00:00:04]} Qa5 {[%clk 00:00:06]} 43. Qxc6 {[%clk 00:00:19]}
{[%emt 00:00:08]} Qd2 {[%clk 00:00:06]} {[%emt 00:00:02]} 44. Qc8+ {[%clk
00:00:18]} {[%emt 00:00:03]} Kh7 {[%clk 00:00:06]} 45. Qf5+ {[%clk 00:00:18]}
{[%emt 00:00:02]} Kh6 {[%clk 00:00:06]} {[%emt 00:00:02]} 46. Qxe5 {[%clk
00:00:18]} {[%emt 00:00:03]} Qc2 {[%clk 00:00:04]} {[%emt 00:00:05]} 47. h4
{[%clk 00:00:13]} {[%emt 00:00:08]} Qb3 {[%clk 00:00:04]} {[%emt 00:00:02]} 48.
Qc5 {[%clk 00:00:11]} {[%emt 00:00:05]} Qa4 {[%clk 00:00:04]} {[%emt 00:00:02]}
49. Qg5+ {[%clk 00:00:11]} {[%emt 00:00:02]} Kh7 {[%clk 00:00:04]} {[%emt
00:00:01]} 50. Qxh5+ Kg8 51. Qc5 {[%clk 00:00:11]} {[%emt 00:00:02]} Qa5 {[%clk
00:00:04]} {[%emt 00:00:02]} 52. h5 {[%emt 00:00:04]} Qe1 {[%clk 00:00:04]}
{[%emt 00:00:01]} 53. Qg5 {[%clk 00:00:11]} {[%emt 00:00:03]} Qc3 {[%clk
00:00:04]} {[%emt 00:00:03]} 54. h6 {[%clk 00:00:11]} {[%emt 00:00:02]} g6
{[%clk 00:00:04]} 55. a4 {[%clk 00:00:11]} {[%emt 00:00:02]} Kh7 {[%clk
00:00:04]} 56. Qf4 {[%clk 00:00:11]} {[%emt 00:00:02]} Qc4 {[%clk 00:00:04]}
{[%emt 00:00:01]} 57. Kg3 {[%clk 00:00:11]} {[%emt 00:00:02]} Qxa4 {[%clk
00:00:04]} {[%emt 00:00:01]} 58. Qxf7+ {[%clk 00:00:11]} {[%emt 00:00:01]} Kxh6
{[%clk 00:00:04]} 59. Qf4+ {[%clk 00:00:11]} {[%emt 00:00:04]} Kh7 {[%clk
00:00:04]} {[%emt 00:00:01]} 60. Qc7+ {[%clk 00:00:11]} {[%emt 00:00:01]} Kh6
{[%clk 00:00:04]} {[%emt 00:00:01]} 61. Qc5 {[%clk 00:00:11]} {[%emt 00:00:02]}
Qa5 {[%clk 00:00:04]} {[%emt 00:00:01]} 62. Qe3+ {[%clk 00:00:09]} {[%emt
00:00:05]} Kh7 {[%clk 00:00:04]} {[%emt 00:00:01]} 63. Qe2 {[%clk 00:00:09]}
Qc7+ {[%clk 00:00:04]} {[%emt 00:00:02]} 64. Kf2 {[%clk 00:00:09]} {[%emt
00:00:01]} Qc5+ {[%clk 00:00:04]} 65. Kg3 {[%clk 00:00:09]} {[%emt 00:00:01]}
Qg5+ {[%clk 00:00:04]} 66. Kf2 {[%clk 00:00:09]} {[%emt 00:00:02]} Qc5+ {[%clk
00:00:04]} 67. Qe3 {[%clk 00:00:09]} {[%emt 00:00:02]} Qc2+ {[%clk 00:00:04]}
{[%emt 00:00:03]} 68. Kg3 {[%clk 00:00:09]} Qc7+ {[%clk 00:00:04]} 69. f4
{[%clk 00:00:09]} {[%emt 00:00:01]} Kg7 {[%clk 00:00:04]} {[%emt 00:00:02]} 70.
Qd4+ {[%clk 00:00:09]} {[%emt 00:00:02]} Kh7 {[%clk 00:00:04]} {[%emt
00:00:01]} 71. e5 {[%clk 00:00:09]} {[%emt 00:00:02]} Qc1 {[%clk 00:00:04]} 72.
Qxa7+ {[%clk 00:00:09]} {[%emt 00:00:03]} Kh6 {[%clk 00:00:04]} 73. Qf2 {[%clk
00:00:08]} {[%emt 00:00:04]} Qb1 {[%clk 00:00:04]} {[%emt 00:00:02]} 74. Qe2
{[%clk 00:00:08]} {[%emt 00:00:02]} Qb3+ {[%clk 00:00:04]} 75. Kf2 {[%clk
00:00:08]} {[%emt 00:00:01]} Qb4 {[%clk 00:00:04]} {[%emt 00:00:01]} 76. g3
{[%clk 00:00:08]} {[%emt 00:00:01]} Qd4+ {[%clk 00:00:04]} 77. Qe3 {[%clk
00:00:08]} {[%emt 00:00:01]} Qb2+ {[%clk 00:00:04]} 78. Kf3 {[%clk 00:00:08]}
{[%emt 00:00:01]} Qxb5 {[%clk 00:00:04]} 79. e6 {[%clk 00:00:08]} Qd5+ {[%clk
00:00:04]} 80. Kf2 {[%clk 00:00:08]} {[%emt 00:00:01]} Qa2+ {[%clk 00:00:04]}
81. Qe2 {[%clk 00:00:08]} {[%emt 00:00:02]} Qa7+ {[%clk 00:00:04]} 82. Kf3
{[%clk 00:00:08]} {[%emt 00:00:01]} Qb7+ {[%clk 00:00:04]} 83. Kg4 {[%clk
00:00:08]} Qc8 {[%clk 00:00:04]} {[%emt 00:00:01]} 84. Qe4 {[%clk 00:00:07]}
{[%emt 00:00:04]} Qc3 {[%clk 00:00:04]} {[%emt 00:00:03]} 85. e7 {[%clk
00:00:07]} {[%emt 00:00:03]} Qc1 {[%clk 00:00:04]} {[%emt 00:00:02]} 86. e8=Q
{[%clk 00:00:06]} {[%emt 00:00:04]} Qd1+ {[%clk 00:00:04]} 87. Qf3 {[%clk
00:00:06]} {[%emt 00:00:02]} Qa4 {[%emt 00:00:04]} 1-0

[Event "13 Open de Quenza"]
[Site "Quenza, France"]
[Date "2024.07.07"]
[Round "5.6"]
[White "Maze, Sebastien"]
[Black "Garde, Guillaume"]
[Result "1-0"]
[TimeControl "5min+3s/move"]
[WhiteElo "2553"]
[BlackElo "2082"]

1. d4 {[%clk 00:05:03]} d5 {[%clk 00:05:03]} {[%emt 00:00:02]} 2. Nf3 {[%clk
00:05:03]} Nf6 {[%clk 00:05:03]} {[%emt 00:00:02]} 3. Bg5 {[%clk 00:05:03]}
{[%emt 00:00:01]} Ne4 {[%clk 00:04:57]} {[%emt 00:00:10]} 4. Bh4 {[%clk
00:05:03]} h6 {[%clk 00:03:59]} {[%emt 00:01:02]} 5. Nbd2 {[%clk 00:04:50]}
{[%emt 00:00:16]} g5 {[%clk 00:03:34]} {[%emt 00:00:28]} 6. Bg3 {[%clk
00:04:50]} {[%emt 00:00:01]} Nxg3 {[%clk 00:03:30]} {[%emt 00:00:07]} 7. hxg3
{[%clk 00:04:50]} {[%emt 00:00:01]} Bg7 {[%clk 00:03:30]} {[%emt 00:00:01]} 8.
c3 {[%clk 00:04:50]} {[%emt 00:00:03]} Bf5 {[%clk 00:03:27]} {[%emt 00:00:07]}
9. Qb3 {[%clk 00:04:45]} {[%emt 00:00:08]} b6 {[%clk 00:03:05]} {[%emt
00:00:25]} 10. e3 {[%clk 00:04:41]} {[%emt 00:00:07]} e6 {[%clk 00:03:03]}
{[%emt 00:00:05]} 11. c4 {[%clk 00:04:27]} {[%emt 00:00:17]} O-O {[%clk
00:02:52]} {[%emt 00:00:14]} 12. cxd5 {[%clk 00:04:20]} {[%emt 00:00:10]} exd5
{[%clk 00:02:52]} 13. Rc1 {[%clk 00:04:04]} {[%emt 00:00:19]} Re8 {[%clk
00:02:30]} {[%emt 00:00:25]} 14. Bb5 {[%clk 00:03:51]} {[%emt 00:00:16]} Re6
{[%clk 00:02:27]} {[%emt 00:00:06]} 15. Bd3 {[%clk 00:03:50]} {[%emt 00:00:05]}
Bxd3 {[%clk 00:02:18]} {[%emt 00:00:13]} 16. Qxd3 {[%clk 00:03:50]} {[%emt
00:00:01]} Nd7 {[%clk 00:02:12]} {[%emt 00:00:09]} 17. b4 {[%clk 00:02:59]}
{[%emt 00:00:53]} c6 {[%clk 00:01:59]} {[%emt 00:00:16]} 18. O-O {[%clk
00:02:37]} {[%emt 00:00:25]} Qe7 {[%clk 00:01:59]} {[%emt 00:00:02]} 19. b5
{[%clk 00:02:34]} {[%emt 00:00:07]} Rc8 {[%clk 00:01:27]} {[%emt 00:00:36]} 20.
a4 {[%emt 00:00:39]} c5 {[%clk 00:01:16]} 21. dxc5 {[%clk 00:02:03]} {[%emt
00:00:11]} Rxc5 {[%clk 00:01:16]} {[%emt 00:00:01]} 22. Nb3 {[%clk 00:01:55]}
{[%emt 00:00:11]} Rxc1 {[%clk 00:01:11]} {[%emt 00:00:08]} 23. Rxc1 {[%clk
00:01:55]} {[%emt 00:00:01]} Qd6 {[%clk 00:00:39]} {[%emt 00:00:35]} 24. Rc8+
{[%clk 00:01:46]} {[%emt 00:00:13]} Bf8 {[%clk 00:00:39]} {[%emt 00:00:02]} 25.
Nbd4 {[%clk 00:01:43]} {[%emt 00:00:06]} Re4 {[%clk 00:00:33]} {[%emt
00:00:09]} 26. Nf5 {[%clk 00:01:35]} {[%emt 00:00:11]} Qf6 {[%clk 00:00:33]}
{[%emt 00:00:03]} 27. Qxd5 {[%clk 00:01:19]} {[%emt 00:00:19]} Re6 {[%clk
00:00:17]} {[%emt 00:00:19]} 28. N3d4 {[%clk 00:00:46]} {[%emt 00:00:36]} Nc5
{[%clk 00:00:17]} {[%emt 00:00:02]} 29. Qa8 {[%clk 00:00:45]} {[%emt 00:00:04]}
Nd7 {[%clk 00:00:10]} {[%emt 00:00:10]} 30. Rd8 {[%clk 00:00:35]} {[%emt
00:00:12]} Rd6 {[%clk 00:00:10]} {[%emt 00:00:04]} 31. Nxd6 {[%clk 00:00:34]}
{[%emt 00:00:04]} Qxd6 {[%clk 00:00:10]} {[%emt 00:00:01]} 32. Qc6 {[%clk
00:00:34]} {[%emt 00:00:02]} Qxc6 {[%clk 00:00:05]} {[%emt 00:00:08]} 33. bxc6
{[%clk 00:00:34]} {[%emt 00:00:02]} 1-0

[Event "13 Open de Quenza"]
[Site "Quenza, France"]
[Date "2024.07.07"]
[Round "5.7"]
[White "Deladerriere, Apollo"]
[Black "Relange, Eloi"]
[Result "0-1"]
[TimeControl "5min+3s/move"]
[WhiteElo "2063"]
[BlackElo "2440"]

1. e4 {[%clk 00:05:03]} {[%emt 00:00:01]} d6 {[%clk 00:05:03]} {[%emt
00:00:01]} 2. d4 {[%clk 00:05:03]} {[%emt 00:00:02]} Nf6 {[%clk 00:05:03]} 3.
Nc3 {[%clk 00:05:03]} {[%emt 00:00:02]} e5 {[%clk 00:05:03]} 4. dxe5 {[%clk
00:05:01]} {[%emt 00:00:06]} dxe5 {[%clk 00:05:03]} {[%emt 00:00:01]} 5. Qxd8+
{[%clk 00:05:01]} {[%emt 00:00:02]} Kxd8 {[%clk 00:05:03]} {[%emt 00:00:01]} 6.
Bg5 {[%clk 00:04:59]} {[%emt 00:00:04]} c6 {[%clk 00:04:43]} {[%emt 00:00:24]}
7. Nf3 {[%clk 00:04:51]} {[%emt 00:00:11]} Nbd7 {[%clk 00:04:41]} {[%emt
00:00:05]} 8. Bc4 {[%clk 00:04:47]} {[%emt 00:00:08]} Ke8 {[%clk 00:04:38]}
{[%emt 00:00:05]} 9. O-O-O {[%clk 00:04:24]} {[%emt 00:00:25]} b5 {[%clk
00:04:37]} {[%emt 00:00:04]} 10. Bxf6 {[%clk 00:04:17]} {[%emt 00:00:10]} gxf6
{[%clk 00:04:35]} {[%emt 00:00:05]} 11. Bb3 {[%clk 00:04:17]} {[%emt 00:00:02]}
Nc5 {[%clk 00:04:23]} {[%emt 00:00:14]} 12. Rhe1 {[%clk 00:04:06]} {[%emt
00:00:14]} a5 {[%clk 00:04:15]} {[%emt 00:00:11]} 13. a4 {[%clk 00:03:53]}
{[%emt 00:00:17]} b4 {[%clk 00:04:09]} {[%emt 00:00:09]} 14. Nb1 {[%clk
00:03:52]} {[%emt 00:00:04]} Rg8 {[%clk 00:03:32]} {[%emt 00:00:40]} 15. g3
{[%clk 00:03:05]} {[%emt 00:00:50]} Bg4 {[%clk 00:03:23]} {[%emt 00:00:12]} 16.
Nbd2 {[%clk 00:03:05]} Bh6 {[%clk 00:03:18]} {[%emt 00:00:08]} 17. Kb1 {[%clk
00:03:05]} {[%emt 00:00:01]} Bxd2 {[%clk 00:03:14]} {[%emt 00:00:07]} 18. Nxd2
{[%clk 00:03:00]} {[%emt 00:00:08]} Bxd1 {[%clk 00:03:14]} {[%emt 00:00:03]} 19.
Rxd1 {[%clk 00:03:00]} {[%emt 00:00:01]} Ke7 {[%clk 00:02:55]} {[%emt
00:00:22]} 20. Nc4 {[%clk 00:02:49]} {[%emt 00:00:14]} Rgd8 {[%clk 00:02:43]}
{[%emt 00:00:15]} 21. Re1 {[%clk 00:02:49]} {[%emt 00:00:01]} Rd4 {[%clk
00:02:34]} {[%emt 00:00:12]} 22. f3 {[%clk 00:02:47]} {[%emt 00:00:05]} Nxb3
{[%clk 00:02:33]} {[%emt 00:00:03]} 23. cxb3 {[%clk 00:02:47]} Rd3 {[%clk
00:02:30]} {[%emt 00:00:06]} 24. Ne3 {[%clk 00:02:35]} {[%emt 00:00:15]} Rad8
{[%clk 00:02:05]} {[%emt 00:00:28]} 25. Nc4 {[%clk 00:02:29]} {[%emt 00:00:10]}
Rd1+ {[%clk 00:01:47]} {[%emt 00:00:21]} 26. Rxd1 {[%clk 00:02:29]} {[%emt
00:00:02]} Rxd1+ {[%clk 00:01:47]} 27. Kc2 {[%clk 00:02:24]} {[%emt 00:00:08]}
Rh1 {[%clk 00:01:27]} {[%emt 00:00:23]} 28. Nxa5 {[%clk 00:02:24]} {[%emt
00:00:02]} Rxh2+ {[%clk 00:01:25]} {[%emt 00:00:05]} 29. Kd3 {[%clk 00:02:24]}
h5 {[%clk 00:01:23]} {[%emt 00:00:05]} 30. Nxc6+ {[%clk 00:02:24]} {[%emt
00:00:03]} Kd6 {[%clk 00:01:22]} {[%emt 00:00:04]} 31. Nxb4 {[%clk 00:02:24]}
{[%emt 00:00:04]} Rg2 {[%clk 00:01:22]} 32. Nd5 {[%clk 00:02:04]} {[%emt
00:00:23]} Rxg3 {[%clk 00:01:16]} {[%emt 00:00:08]} 33. Ke3 {[%clk 00:02:04]}
{[%emt 00:00:03]} h4 {[%clk 00:01:06]} {[%emt 00:00:12]} 34. Kf2 {[%clk
00:01:55]} {[%emt 00:00:13]} Rg6 {[%clk 00:01:04]} {[%emt 00:00:05]} 35. a5
{[%clk 00:01:52]} {[%emt 00:00:06]} h3 {[%clk 00:01:00]} {[%emt 00:00:06]} 36.
a6 {[%clk 00:01:31]} {[%emt 00:00:24]} h2 {[%clk 00:00:55]} {[%emt 00:00:08]}
37. a7 {[%clk 00:01:31]} h1=Q {[%clk 00:00:30]} {[%emt 00:00:28]} 38. a8=Q
{[%clk 00:01:31]} {[%emt 00:00:01]} Rg2+ {[%clk 00:00:24]} {[%emt 00:00:08]} 39.
Ke3 {[%clk 00:01:31]} {[%emt 00:00:01]} Qc1+ {[%clk 00:00:24]} {[%emt
00:00:02]} 40. Kd3 {[%emt 00:00:06]} Rd2+ 41. Ke3 {[%clk 00:01:31]} Qe1# {[%clk
00:00:07]} {[%emt 00:00:01]} 42. Kd4 0-1